[Event "January 2 Late 2024"]
[Site "https://www.chess.com"]
[Date "2024.01.02"]
[Round "11"]
[White "MiguelEduardoGB"]
[Black "Kujawski, Adam"]
[Result "0-1"]
[Board "128"]
[TimeControl "180+1"]
[BlackFideId "1100920"]
[WhiteElo "2195"]
[BlackElo "2296"]
[BlackTeam "POL"]
[WhiteClock "0:00:42"]
[BlackClock "0:00:15"]

1. b3 {[%clk 0:03:00]}  e5 {[%clk 0:02:59]} 2. Bb2 {[%clk 0:03:00]}  Nc6 {[%clk 0:02:59]} 3. g3 {[%clk 0:03:00]}  d5 {[%clk 0:02:58]} 4. Bg2 {[%clk 0:03:00]}  Nf6 {[%clk 0:02:58]} 5. d3 {[%clk 0:03:00]}  Bc5 {[%clk 0:02:56]} 6. Nd2 {[%clk 0:03:00]}  Bxf2+ {[%clk 0:02:20]} 7. Kxf2 {[%clk 0:02:57]}  Ng4+ {[%clk 0:02:19]} 8. Ke1 {[%clk 0:02:31]}  Ne3 {[%clk 0:02:19]} 9. Qc1 {[%clk 0:02:30]}  Nxg2+ {[%clk 0:01:46]} 10. Kf2 {[%clk 0:02:27]}  Nh4 {[%clk 0:01:42]} 11. gxh4 {[%clk 0:02:22]}  Qxh4+ {[%clk 0:01:43]} 12. Kf1 {[%clk 0:02:20]}  Bh3+ {[%clk 0:01:17]} 13. Nxh3 {[%clk 0:02:15]}  Qxh3+ {[%clk 0:01:18]} 14. Ke1 {[%clk 0:02:11]}  O-O-O {[%clk 0:01:03]} 15. Nf3 {[%clk 0:01:58]}  e4 {[%clk 0:00:56]} 16. Nd4 {[%clk 0:01:40]}  exd3 {[%clk 0:00:31]} 17. cxd3 {[%clk 0:01:36]}  Qh4+ {[%clk 0:00:29]} 18. Kd1 {[%clk 0:01:31]}  Nxd4 {[%clk 0:00:29]} 19. Bxd4 {[%clk 0:01:30]}  Qxd4 {[%clk 0:00:28]} 20. Rf1 {[%clk 0:01:15]}  Rd7 {[%clk 0:00:22]} 21. Rf4 {[%clk 0:01:12]}  Qg1+ {[%clk 0:00:22]} 22. Kc2 {[%clk 0:01:11]}  Qxc1+ {[%clk 0:00:22]} 23. Rxc1 {[%clk 0:01:11]}  f6 {[%clk 0:00:22]} 24. Rg1 {[%clk 0:01:10]}  c6 {[%clk 0:00:22]} 25. Kd2 {[%clk 0:01:10]}  h6 {[%clk 0:00:21]} 26. Rg6 {[%clk 0:01:09]}  Re8 {[%clk 0:00:20]} 27. Rfg4 {[%clk 0:01:09]}  Ree7 {[%clk 0:00:20]} 28. h4 {[%clk 0:01:08]}  Kc7 {[%clk 0:00:21]} 29. h5 {[%clk 0:01:08]}  b6 {[%clk 0:00:20]} 30. b4 {[%clk 0:01:03]}  c5 {[%clk 0:00:19]} 31. bxc5 {[%clk 0:01:03]}  bxc5 {[%clk 0:00:19]} 32. Ra4 {[%clk 0:01:03]}  Kb6 {[%clk 0:00:19]} 33. Rag4 {[%clk 0:01:02]}  a5 {[%clk 0:00:19]} 34. Rg1 {[%clk 0:00:59]}  Kc6 {[%clk 0:00:18]} 35. R1g4 {[%clk 0:00:57]}  Ra7 {[%clk 0:00:18]} 36. a4 {[%clk 0:00:56]}  Kd6 {[%clk 0:00:18]} 37. Rg1 {[%clk 0:00:50]}  d4 {[%clk 0:00:18]} 38. R1g2 {[%clk 0:00:48]}  Ke6 {[%clk 0:00:18]} 39. Rg1 {[%clk 0:00:45]}  Rad7 {[%clk 0:00:18]} 40. Rc1 {[%clk 0:00:44]}  Rd5 {[%clk 0:00:17]} 41. Rh1 {[%clk 0:00:41]}  Rg5 {[%clk 0:00:16]} 42. Rxg5 {[%clk 0:00:41]}  fxg5 {[%clk 0:00:16]} 43. Rb1 {[%clk 0:00:39]}  Kd5 {[%clk 0:00:15]} 44. Rb5 {[%clk 0:00:39]}  g4 {[%clk 0:00:13]} 45. Rb1 {[%clk 0:00:37]}  Re5 {[%clk 0:00:13]} 46. Rg1 {[%clk 0:00:38]}  Rg5 {[%clk 0:00:13]} 47. e4+ {[%clk 0:00:38]}  dxe3+ {[%clk 0:00:12]} 48. Kxe3 {[%clk 0:00:39]}  g3 {[%clk 0:00:13]} 49. Kf4 {[%clk 0:00:39]}  g2 {[%clk 0:00:13]} 50. Kf3 {[%clk 0:00:40]}  Kd4 {[%clk 0:00:13]} 51. Rxg2 {[%clk 0:00:39]}  Rxg2 {[%clk 0:00:13]} 52. Kxg2 {[%clk 0:00:40]}  Kxd3 {[%clk 0:00:13]} 53. Kf3 {[%clk 0:00:41]}  c4 {[%clk 0:00:14]} 54. Kf4 {[%clk 0:00:42]}  c3 {[%clk 0:00:14]} 55. Kf5 {[%clk 0:00:43]}  c2 {[%clk 0:00:14]} 56. Kg6 {[%clk 0:00:44]}  c1=Q {[%clk 0:00:15]} 57. Kxg7 {[%clk 0:00:42]}  Qg5+ {[%clk 0:00:15]} 0-1

[Event "January 2 Late 2024"]
[Site "https://www.chess.com"]
[Date "2024.01.02"]
[Round "11"]
[White "Vanek, Tomas"]
[Black "yujiarun18"]
[Result "1-0"]
[Board "129"]
[TimeControl "180+1"]
[WhiteFideId "313459"]
[WhiteElo "2271"]
[BlackElo "2159"]
[WhiteTeam "CZE"]
[WhiteClock "0:01:55"]
[BlackClock "0:02:18"]

1. e4 {[%clk 0:02:58]}  c5 {[%clk 0:02:59]} 2. Nc3 {[%clk 0:02:57]}  Nc6 {[%clk 0:02:59]} 3. g3 {[%clk 0:02:57]}  g6 {[%clk 0:02:55]} 4. Bg2 {[%clk 0:02:57]}  Bg7 {[%clk 0:02:55]} 5. d3 {[%clk 0:02:57]}  d6 {[%clk 0:02:54]} 6. Be3 {[%clk 0:02:55]}  Nf6 {[%clk 0:02:55]} 7. h3 {[%clk 0:02:48]}  O-O {[%clk 0:02:52]} 8. Nge2 {[%clk 0:02:48]}  b6 {[%clk 0:02:52]} 9. e5 {[%clk 0:02:43]}  Bb7 {[%clk 0:02:49]} 10. exf6 {[%clk 0:02:42]}  Bxf6 {[%clk 0:02:50]} 11. O-O {[%clk 0:02:41]}  d5 {[%clk 0:02:49]} 12. Nxd5 {[%clk 0:02:38]}  Bg7 {[%clk 0:02:46]} 13. c3 {[%clk 0:02:33]}  Ne5 {[%clk 0:02:39]} 14. Nf6+ {[%clk 0:02:16]}  Bxf6 {[%clk 0:02:36]} 15. Bxb7 {[%clk 0:02:16]}  Qd7 {[%clk 0:02:36]} 16. Bxa8 {[%clk 0:02:08]}  Rxa8 {[%clk 0:02:34]} 17. f4 {[%clk 0:01:55]}  Nxd3 {[%clk 0:02:18]} 18. Nc1 {[%clk 0:01:55]} 1-0

[Event "January 2 Late 2024"]
[Site "https://www.chess.com"]
[Date "2024.01.02"]
[Round "11"]
[White "Romero Ruscalleda, Josep"]
[Black "Reinecke, Katharina"]
[Result "1-0"]
[Board "132"]
[TimeControl "180+1"]
[WhiteFideId "2231859"]
[BlackFideId "12929727"]
[WhiteElo "2292"]
[BlackElo "2029"]
[WhiteTeam "ESP"]
[BlackTeam "GER"]
[WhiteClock "0:00:07"]
[BlackClock "0:00:00"]

1. e4 {[%clk 0:03:00]}  c6 {[%clk 0:02:59]} 2. Nc3 {[%clk 0:03:00]}  d5 {[%clk 0:02:59]} 3. Nf3 {[%clk 0:03:00]}  Bg4 {[%clk 0:02:57]} 4. h3 {[%clk 0:03:00]}  Bxf3 {[%clk 0:02:57]} 5. Qxf3 {[%clk 0:03:00]}  e6 {[%clk 0:02:57]} 6. d3 {[%clk 0:03:00]}  Nf6 {[%clk 0:02:54]} 7. Bd2 {[%clk 0:02:59]}  Be7 {[%clk 0:02:51]} 8. g4 {[%clk 0:02:58]}  d4 {[%clk 0:02:39]} 9. Ne2 {[%clk 0:02:54]}  c5 {[%clk 0:02:38]} 10. Qg3 {[%clk 0:02:50]}  Nc6 {[%clk 0:02:37]} 11. f4 {[%clk 0:02:50]}  b5 {[%clk 0:02:30]} 12. g5 {[%clk 0:02:45]}  Nd7 {[%clk 0:02:28]} 13. Bg2 {[%clk 0:02:44]}  Qc7 {[%clk 0:02:25]} 14. O-O {[%clk 0:02:42]}  h6 {[%clk 0:02:16]} 15. h4 {[%clk 0:02:38]}  hxg5 {[%clk 0:02:15]} 16. hxg5 {[%clk 0:02:39]}  O-O-O {[%clk 0:02:12]} 17. a4 {[%clk 0:02:30]}  b4 {[%clk 0:02:09]} 18. b3 {[%clk 0:02:29]}  f6 {[%clk 0:02:08]} 19. g6 {[%clk 0:02:25]}  Nf8 {[%clk 0:01:58]} 20. f5 {[%clk 0:02:20]}  exf5 {[%clk 0:01:57]} 21. exf5 {[%clk 0:02:17]}  Bd6 {[%clk 0:01:55]} 22. Bf4 {[%clk 0:02:15]}  Ne5 {[%clk 0:01:44]} 23. Kf2 {[%clk 0:01:49]}  Nfd7 {[%clk 0:01:42]} 24. Ng1 {[%clk 0:01:47]}  Nxd3+ {[%clk 0:01:37]} 25. Qxd3 {[%clk 0:01:41]}  Bxf4 {[%clk 0:01:28]} 26. Qa6+ {[%clk 0:01:24]}  Kb8 {[%clk 0:01:28]} 27. Nf3 {[%clk 0:01:23]}  Bg3+ {[%clk 0:01:22]} 28. Ke2 {[%clk 0:01:23]}  Rde8+ {[%clk 0:01:20]} 29. Kd1 {[%clk 0:01:19]}  Rh2 {[%clk 0:01:16]} 30. Qb5+ {[%clk 0:01:07]}  Kc8 {[%clk 0:01:13]} 31. Bh1 {[%clk 0:01:03]}  Ree2 {[%clk 0:01:09]} 32. Qxe2 {[%clk 0:01:01]}  Rxe2 {[%clk 0:01:08]} 33. Kxe2 {[%clk 0:01:01]}  Ne5 {[%clk 0:01:08]} 34. Kd2 {[%clk 0:00:55]}  Ng4 {[%clk 0:01:02]} 35. Kc1 {[%clk 0:00:50]}  Ne3 {[%clk 0:00:58]} 36. Rg1 {[%clk 0:00:50]}  Bf4 {[%clk 0:00:56]} 37. Kb2 {[%clk 0:00:49]}  c4 {[%clk 0:00:50]} 38. Nxd4 {[%clk 0:00:45]}  Be5 {[%clk 0:00:40]} 39. Rad1 {[%clk 0:00:24]}  cxb3 {[%clk 0:00:37]} 40. cxb3 {[%clk 0:00:09]}  Qc3+ {[%clk 0:00:28]} 41. Kb1 {[%clk 0:00:08]}  Bxd4 {[%clk 0:00:28]} 42. Rc1 {[%clk 0:00:08]}  Kd7 {[%clk 0:00:15]} 43. Rxc3 {[%clk 0:00:08]}  bxc3 {[%clk 0:00:15]} 44. Re1 {[%clk 0:00:07]}  c2+ {[%clk 0:00:15]} 45. Kc1 {[%clk 0:00:07]}  Kd6 {[%clk 0:00:11]} 46. Be4 {[%clk 0:00:07]}  Ke5 {[%clk 0:00:10]} 47. Bxc2 {[%clk 0:00:07]}  Kf4 {[%clk 0:00:10]} 48. Bd3 {[%clk 0:00:07]}  Bc3 {[%clk 0:00:08]} 49. Re2 {[%clk 0:00:06]}  Bd4 {[%clk 0:00:08]} 50. Kd2 {[%clk 0:00:06]}  Bb6 {[%clk 0:00:07]} 51. Rf2+ {[%clk 0:00:06]}  Ke5 {[%clk 0:00:07]} 52. Rf3 {[%clk 0:00:06]}  Nd5 {[%clk 0:00:06]} 53. Bc4 {[%clk 0:00:06]}  Ba5+ {[%clk 0:00:05]} 54. Kd3 {[%clk 0:00:06]}  Nb4+ {[%clk 0:00:05]} 55. Ke2 {[%clk 0:00:06]}  Nd5 {[%clk 0:00:04]} 56. Bxd5 {[%clk 0:00:05]}  Kxd5 {[%clk 0:00:03]} 57. Kd3 {[%clk 0:00:06]}  Ke5 {[%clk 0:00:03]} 58. Kc4 {[%clk 0:00:06]}  Bb6 {[%clk 0:00:02]} 59. b4 {[%clk 0:00:07]}  Bd4 {[%clk 0:00:01]} 60. a5 {[%clk 0:00:07]}  a6 {[%clk 0:00:00]} 61. b5 {[%clk 0:00:07]} 1-0

[Event "January 2 Late 2024"]
[Site "https://www.chess.com"]
[Date "2024.01.02"]
[Round "11"]
[White "Carrillo Marval, Maria Angelica"]
[Black "Burke, Paul"]
[Result "1-0"]
[Board "133"]
[TimeControl "180+1"]
[WhiteFideId "3911853"]
[BlackFideId "2605767"]
[WhiteElo "2053"]
[BlackElo "1940"]
[WhiteTeam "PAN"]
[BlackTeam "CAN"]
[WhiteClock "0:00:19"]
[BlackClock "0:00:32"]

1. e4 {[%clk 0:02:55]}  e5 {[%clk 0:02:33]} 2. Nf3 {[%clk 0:02:45]}  Nc6 {[%clk 0:02:32]} 3. Bc4 {[%clk 0:02:35]}  Be7 {[%clk 0:02:31]} 4. O-O {[%clk 0:02:11]}  Nf6 {[%clk 0:02:31]} 5. d3 {[%clk 0:02:10]}  O-O {[%clk 0:02:30]} 6. c3 {[%clk 0:02:09]}  d6 {[%clk 0:02:26]} 7. Bb3 {[%clk 0:02:09]}  Bg4 {[%clk 0:02:25]} 8. Nbd2 {[%clk 0:02:09]}  d5 {[%clk 0:02:24]} 9. Qe2 {[%clk 0:02:08]}  dxe4 {[%clk 0:02:22]} 10. dxe4 {[%clk 0:02:09]}  Kh8 {[%clk 0:02:19]} 11. Rd1 {[%clk 0:02:06]}  Qc8 {[%clk 0:02:17]} 12. Nf1 {[%clk 0:02:06]}  Nxe4 {[%clk 0:01:56]} 13. Qxe4 {[%clk 0:01:46]}  f5 {[%clk 0:01:55]} 14. Qc2 {[%clk 0:01:24]}  e4 {[%clk 0:01:55]} 15. h3 {[%clk 0:01:24]}  exf3 {[%clk 0:01:49]} 16. hxg4 {[%clk 0:01:24]}  fxg2 {[%clk 0:01:49]} 17. Kxg2 {[%clk 0:01:24]}  fxg4 {[%clk 0:01:48]} 18. Ng3 {[%clk 0:01:22]}  Ne5 {[%clk 0:01:40]} 19. Be3 {[%clk 0:01:11]}  Nf3 {[%clk 0:01:40]} 20. Rh1 {[%clk 0:01:08]}  Nh4+ {[%clk 0:01:26]} 21. Kf1 {[%clk 0:00:32]}  Qd8 {[%clk 0:00:56]} 22. Qe4 {[%clk 0:00:26]}  Bd6 {[%clk 0:00:32]} 23. Bc2 {[%clk 0:00:19]} 1-0

[Event "January 2 Late 2024"]
[Site "https://www.chess.com"]
[Date "2024.01.02"]
[Round "11"]
[White "Piscicelli, Daniel Orlando"]
[Black "Ivanov, Aleksandr"]
[Result "0-1"]
[Board "134"]
[TimeControl "180+1"]
[WhiteFideId "101958"]
[BlackFideId "2092980"]
[WhiteElo "2342"]
[BlackElo "2132"]
[WhiteTeam "ARG"]
[BlackTeam "USA"]
[WhiteClock "0:00:06"]
[BlackClock "0:01:41"]

1. e4 {[%clk 0:03:00]}  e6 {[%clk 0:02:57]} 2. d4 {[%clk 0:02:56]}  d5 {[%clk 0:02:56]} 3. exd5 {[%clk 0:02:56]}  exd5 {[%clk 0:02:56]} 4. Bd3 {[%clk 0:02:56]}  Nf6 {[%clk 0:02:56]} 5. Nf3 {[%clk 0:02:56]}  Bd6 {[%clk 0:02:55]} 6. O-O {[%clk 0:02:57]}  O-O {[%clk 0:02:55]} 7. Bg5 {[%clk 0:02:55]}  Bg4 {[%clk 0:02:55]} 8. Nbd2 {[%clk 0:02:55]}  Nbd7 {[%clk 0:02:53]} 9. c3 {[%clk 0:02:54]}  c6 {[%clk 0:02:53]} 10. Qc2 {[%clk 0:02:54]}  Qc7 {[%clk 0:02:50]} 11. Rfe1 {[%clk 0:02:49]}  Bh5 {[%clk 0:02:45]} 12. Rac1 {[%clk 0:02:36]}  Bg6 {[%clk 0:02:45]} 13. Bxg6 {[%clk 0:02:33]}  fxg6 {[%clk 0:02:44]} 14. Bh4 {[%clk 0:02:03]}  Rae8 {[%clk 0:02:41]} 15. Bxf6 {[%clk 0:01:46]}  Nxf6 {[%clk 0:02:30]} 16. h3 {[%clk 0:01:13]}  Kh8 {[%clk 0:02:22]} 17. Ng5 {[%clk 0:01:12]}  Qd7 {[%clk 0:02:07]} 18. Ngf3 {[%clk 0:00:52]}  Bf4 {[%clk 0:02:05]} 19. Ne5 {[%clk 0:00:44]}  Bxe5 {[%clk 0:02:01]} 20. dxe5 {[%clk 0:00:43]}  Nh5 {[%clk 0:02:00]} 21. Nf3 {[%clk 0:00:36]}  Nf4 {[%clk 0:01:58]} 22. Rcd1 {[%clk 0:00:26]}  Nxh3+ {[%clk 0:01:58]} 23. gxh3 {[%clk 0:00:24]}  Rxf3 {[%clk 0:01:58]} 24. Kh2 {[%clk 0:00:20]}  Qxh3+ {[%clk 0:01:55]} 25. Kg1 {[%clk 0:00:18]}  Ref8 {[%clk 0:01:45]} 26. Re2 {[%clk 0:00:14]}  R8f4 {[%clk 0:01:41]} 27. Rxd5 {[%clk 0:00:06]}  Rg4# {[%clk 0:01:41]} 0-1

[Event "January 2 Late 2024"]
[Site "https://www.chess.com"]
[Date "2024.01.02"]
[Round "11"]
[White "Kubatko, Ivan"]
[Black "Petersson, Kjell"]
[Result "0-1"]
[Board "136"]
[TimeControl "180+1"]
[WhiteFideId "24111473"]
[BlackFideId "1705148"]
[WhiteElo "2304"]
[BlackElo "2113"]
[WhiteTeam "RUS"]
[BlackTeam "SWE"]
[WhiteClock "0:02:03"]
[BlackClock "0:02:06"]

1. e4 {[%clk 0:02:56]}  c5 {[%clk 0:02:59]} 2. Nc3 {[%clk 0:02:55]}  g6 {[%clk 0:02:58]} 3. h4 {[%clk 0:02:53]}  h5 {[%clk 0:02:53]} 4. Nf3 {[%clk 0:02:42]}  Nc6 {[%clk 0:02:52]} 5. d4 {[%clk 0:02:42]}  cxd4 {[%clk 0:02:51]} 6. Nxd4 {[%clk 0:02:43]}  Bg7 {[%clk 0:02:52]} 7. Be3 {[%clk 0:02:43]}  d6 {[%clk 0:02:49]} 8. Be2 {[%clk 0:02:41]}  Nf6 {[%clk 0:02:42]} 9. Qd2 {[%clk 0:02:38]}  Bd7 {[%clk 0:02:19]} 10. O-O-O {[%clk 0:02:37]}  Na5 {[%clk 0:02:08]} 11. Kb1 {[%clk 0:02:03]}  Rc8 {[%clk 0:02:06]} 0-1

[Event "January 2 Late 2024"]
[Site "https://www.chess.com"]
[Date "2024.01.02"]
[Round "11"]
[White "Smirnov, Timofey"]
[Black "Anna20240"]
[Result "1-0"]
[Board "138"]
[TimeControl "180+1"]
[WhiteFideId "24176427"]
[WhiteElo "1992"]
[BlackElo "1815"]
[WhiteTeam "RUS"]
[WhiteClock "0:00:11"]
[BlackClock "0:00:13"]

1. d4 {[%clk 0:03:00]}  d5 {[%clk 0:02:57]} 2. Bf4 {[%clk 0:03:00]}  e6 {[%clk 0:02:53]} 3. e3 {[%clk 0:03:01]}  Nf6 {[%clk 0:02:53]} 4. Nd2 {[%clk 0:03:00]}  Bd6 {[%clk 0:02:54]} 5. Bg3 {[%clk 0:03:00]}  O-O {[%clk 0:02:52]} 6. Ngf3 {[%clk 0:02:59]}  c5 {[%clk 0:02:52]} 7. c3 {[%clk 0:02:57]}  Nc6 {[%clk 0:02:52]} 8. Bd3 {[%clk 0:02:55]}  c4 {[%clk 0:02:40]} 9. Bc2 {[%clk 0:02:54]}  h6 {[%clk 0:02:34]} 10. Ne5 {[%clk 0:02:51]}  Qc7 {[%clk 0:02:32]} 11. Ndf3 {[%clk 0:02:48]}  Ne4 {[%clk 0:02:24]} 12. Nxc6 {[%clk 0:02:40]}  Nxg3 {[%clk 0:02:17]} 13. hxg3 {[%clk 0:02:40]}  bxc6 {[%clk 0:02:16]} 14. e4 {[%clk 0:02:23]}  dxe4 {[%clk 0:02:14]} 15. Bxe4 {[%clk 0:02:24]}  f5 {[%clk 0:02:13]} 16. Bc2 {[%clk 0:02:18]}  e5 {[%clk 0:02:10]} 17. dxe5 {[%clk 0:02:16]}  Bxe5 {[%clk 0:02:10]} 18. O-O {[%clk 0:02:12]}  Bb7 {[%clk 0:02:04]} 19. Nxe5 {[%clk 0:02:10]}  Qxe5 {[%clk 0:02:03]} 20. Re1 {[%clk 0:02:10]}  Qd5 {[%clk 0:02:00]} 21. Qf3 {[%clk 0:02:00]}  Rae8 {[%clk 0:01:54]} 22. Rxe8 {[%clk 0:01:49]}  Rxe8 {[%clk 0:01:51]} 23. Qxf5 {[%clk 0:01:41]}  Qxf5 {[%clk 0:01:46]} 24. Bxf5 {[%clk 0:01:41]}  Re2 {[%clk 0:01:40]} 25. Rb1 {[%clk 0:01:34]}  Kf7 {[%clk 0:01:39]} 26. Bg4 {[%clk 0:01:26]}  Rd2 {[%clk 0:01:34]} 27. Kf1 {[%clk 0:01:14]}  c5 {[%clk 0:01:30]} 28. Bf3 {[%clk 0:01:12]}  Bc8 {[%clk 0:01:25]} 29. Ke1 {[%clk 0:01:10]}  Rd8 {[%clk 0:01:21]} 30. Rd1 {[%clk 0:01:08]}  Rxd1+ {[%clk 0:01:16]} 31. Kxd1 {[%clk 0:01:08]}  Bf5 {[%clk 0:01:15]} 32. Kd2 {[%clk 0:01:01]}  Ke6 {[%clk 0:01:14]} 33. Be2 {[%clk 0:01:01]}  Ke5 {[%clk 0:01:07]} 34. Bxc4 {[%clk 0:00:58]}  g5 {[%clk 0:01:06]} 35. Be2 {[%clk 0:00:54]}  Bb1 {[%clk 0:01:05]} 36. a3 {[%clk 0:00:54]}  a5 {[%clk 0:01:04]} 37. Bd3 {[%clk 0:00:47]}  Ba2 {[%clk 0:00:55]} 38. Ke3 {[%clk 0:00:26]}  Bd5 {[%clk 0:00:36]} 39. f3 {[%clk 0:00:22]}  c4 {[%clk 0:00:33]} 40. Be2 {[%clk 0:00:12]}  Be6 {[%clk 0:00:16]} 41. f4+ {[%clk 0:00:10]}  Kf5 {[%clk 0:00:14]} 42. g4+ {[%clk 0:00:09]}  Kf6 {[%clk 0:00:13]} 43. f5 {[%clk 0:00:08]}  Bd5 {[%clk 0:00:13]} 44. Bf3 {[%clk 0:00:07]}  Ke5 {[%clk 0:00:12]} 45. Bxd5 {[%clk 0:00:07]}  Kxd5 {[%clk 0:00:13]} 46. g3 {[%clk 0:00:05]}  Ke5 {[%clk 0:00:12]} 47. f6 {[%clk 0:00:05]}  Kxf6 {[%clk 0:00:12]} 48. Kd4 {[%clk 0:00:05]}  Ke6 {[%clk 0:00:11]} 49. Kxc4 {[%clk 0:00:05]}  Ke5 {[%clk 0:00:12]} 50. Kb5 {[%clk 0:00:04]}  Ke4 {[%clk 0:00:12]} 51. c4 {[%clk 0:00:04]}  Kf3 {[%clk 0:00:13]} 52. c5 {[%clk 0:00:05]}  Kxg3 {[%clk 0:00:14]} 53. c6 {[%clk 0:00:06]}  Kxg4 {[%clk 0:00:14]} 54. c7 {[%clk 0:00:07]}  Kh3 {[%clk 0:00:15]} 55. c8=Q+ {[%clk 0:00:08]}  g4 {[%clk 0:00:15]} 56. Qh8 {[%clk 0:00:07]}  g3 {[%clk 0:00:15]} 57. Qxh6+ {[%clk 0:00:06]}  Kg2 {[%clk 0:00:15]} 58. Kxa5 {[%clk 0:00:06]}  Kf2 {[%clk 0:00:15]} 59. Qg5 {[%clk 0:00:06]}  g2 {[%clk 0:00:16]} 60. Kb6 {[%clk 0:00:06]}  g1=Q {[%clk 0:00:15]} 61. Qxg1+ {[%clk 0:00:06]}  Kxg1 {[%clk 0:00:16]} 62. a4 {[%clk 0:00:07]}  Kf1 {[%clk 0:00:16]} 63. a5 {[%clk 0:00:08]}  Ke1 {[%clk 0:00:16]} 64. a6 {[%clk 0:00:09]}  Kd1 {[%clk 0:00:16]} 65. a7 {[%clk 0:00:10]}  Kc1 {[%clk 0:00:16]} 66. a8=Q {[%clk 0:00:11]}  Kxb2 {[%clk 0:00:16]} 67. Qf3 {[%clk 0:00:09]}  Kc1 {[%clk 0:00:15]} 68. Qe2 {[%clk 0:00:08]}  Kb1 {[%clk 0:00:15]} 69. Qd2 {[%clk 0:00:08]}  Ka1 {[%clk 0:00:14]} 70. Kb5 {[%clk 0:00:09]}  Kb1 {[%clk 0:00:15]} 71. Kb4 {[%clk 0:00:10]}  Ka1 {[%clk 0:00:13]} 72. Kb3 {[%clk 0:00:11]} 1-0

[Event "January 2 Late 2024"]
[Site "https://www.chess.com"]
[Date "2024.01.02"]
[Round "11"]
[White "Gulamirian, Korun"]
[Black "Belanoff, Ted"]
[Result "0-1"]
[Board "139"]
[TimeControl "180+1"]
[WhiteFideId "4144899"]
[BlackFideId "2070588"]
[WhiteElo "1596"]
[BlackElo "2213"]
[WhiteTeam "RUS"]
[BlackTeam "USA"]
[WhiteClock "0:00:00"]
[BlackClock "0:00:40"]

1. e4 {[%clk 0:03:00]}  e5 {[%clk 0:02:59]} 2. Nf3 {[%clk 0:03:00]}  Bc5 {[%clk 0:02:59]} 3. Bc4 {[%clk 0:02:59]}  d6 {[%clk 0:02:59]} 4. c3 {[%clk 0:02:59]}  Bg4 {[%clk 0:02:59]} 5. O-O {[%clk 0:02:58]}  Nc6 {[%clk 0:02:59]} 6. b4 {[%clk 0:02:56]}  Bb6 {[%clk 0:02:59]} 7. a4 {[%clk 0:02:55]}  a5 {[%clk 0:02:59]} 8. b5 {[%clk 0:02:55]}  Nb8 {[%clk 0:02:59]} 9. Bxf7+ {[%clk 0:02:48]}  Kxf7 {[%clk 0:02:58]} 10. Nxe5+ {[%clk 0:02:48]}  dxe5 {[%clk 0:02:59]} 11. Qxg4 {[%clk 0:02:48]}  Nf6 {[%clk 0:02:59]} 12. Qf3 {[%clk 0:02:42]}  Nd7 {[%clk 0:02:57]} 13. Na3 {[%clk 0:02:34]}  Nc5 {[%clk 0:02:55]} 14. Nc4 {[%clk 0:02:34]}  Re8 {[%clk 0:02:54]} 15. d4 {[%clk 0:02:33]}  Nxe4 {[%clk 0:02:54]} 16. Nxb6 {[%clk 0:02:11]}  cxb6 {[%clk 0:02:53]} 17. Re1 {[%clk 0:01:51]}  exd4 {[%clk 0:02:53]} 18. cxd4 {[%clk 0:01:48]}  Qxd4 {[%clk 0:02:53]} 19. Be3 {[%clk 0:01:48]}  Qe5 {[%clk 0:02:48]} 20. Rac1 {[%clk 0:01:41]}  Qh5 {[%clk 0:02:47]} 21. Rc7+ {[%clk 0:01:39]}  Kg8 {[%clk 0:02:46]} 22. Bxb6 {[%clk 0:01:26]}  Qxf3 {[%clk 0:02:46]} 23. gxf3 {[%clk 0:01:26]}  Ng5 {[%clk 0:02:46]} 24. Rxe8+ {[%clk 0:01:14]}  Rxe8 {[%clk 0:02:47]} 25. Kg2 {[%clk 0:01:11]}  Nd5 {[%clk 0:02:44]} 26. Rxb7 {[%clk 0:01:11]}  Nf4+ {[%clk 0:02:42]} 27. Kg3 {[%clk 0:01:10]}  Ne2+ {[%clk 0:02:38]} 28. Kg4 {[%clk 0:01:09]}  Ne6 {[%clk 0:02:38]} 29. Bxa5 {[%clk 0:01:08]}  Rf8 {[%clk 0:02:34]} 30. Bd2 {[%clk 0:00:59]}  g6 {[%clk 0:02:30]} 31. f4 {[%clk 0:00:53]}  N2xf4 {[%clk 0:02:28]} 32. a5 {[%clk 0:00:48]}  h5+ {[%clk 0:02:26]} 33. Kg3 {[%clk 0:00:44]}  Ne2+ {[%clk 0:02:26]} 34. Kg2 {[%clk 0:00:43]}  Nc5 {[%clk 0:02:25]} 35. Re7 {[%clk 0:00:40]}  Nd4 {[%clk 0:02:11]} 36. Bc3 {[%clk 0:00:38]}  Nf5 {[%clk 0:02:02]} 37. Rc7 {[%clk 0:00:37]}  Ne4 {[%clk 0:02:01]} 38. Bb2 {[%clk 0:00:31]}  Nh4+ {[%clk 0:01:47]} 39. Kg1 {[%clk 0:00:21]}  Rd8 {[%clk 0:01:33]} 40. Rc1 {[%clk 0:00:13]}  Rd5 {[%clk 0:01:29]} 41. b6 {[%clk 0:00:11]}  Rb5 {[%clk 0:00:53]} 42. a6 {[%clk 0:00:07]}  Nd6 {[%clk 0:00:44]} 43. a7 {[%clk 0:00:05]}  Ra5 {[%clk 0:00:44]} 44. Rc8+ {[%clk 0:00:01]}  Nxc8 {[%clk 0:00:43]} 45. b7 {[%clk 0:00:01]}  Nxa7 {[%clk 0:00:39]} 46. b8=Q+ {[%clk 0:00:00]}  Kf7 {[%clk 0:00:40]} 0-1